[Event "Early-Titled-Tuesday-Blitz-October-24-2023"]
[Site "Chess.com"]
[Date "2023.10.24"]
[Round "5"]
[White "Semetey"]
[Black "LuisFSiles"]
[Result "1-0"]
[WhiteElo "2534"]
[BlackElo "2280"]
[TimeControl "180+1"]
[EndTime "8:53:35 PDT"]
[Termination "Semetey won on time"]

1. a3 {[%clk 0:02:53.3]} 1... g6 {[%clk 0:02:58]} 2. e4 {[%clk 0:02:50.6]} 2...
Bg7 {[%clk 0:02:57.7]} 3. d4 {[%clk 0:02:50.8]} 3... d6 {[%clk 0:02:50.4]} 4.
Nf3 {[%clk 0:02:47]} 4... Nf6 {[%clk 0:02:49.7]} 5. Nc3 {[%clk 0:02:46.1]} 5...
O-O {[%clk 0:02:49.1]} 6. Be2 {[%clk 0:02:44.9]} 6... Bg4 {[%clk 0:02:48.9]} 7.
O-O {[%clk 0:02:43.1]} 7... Nc6 {[%clk 0:02:47.9]} 8. Be3 {[%clk 0:02:43]} 8...
e5 {[%clk 0:02:42.5]} 9. dxe5 {[%clk 0:02:42.3]} 9... Nxe5 {[%clk 0:02:25]} 10.
Nxe5 {[%clk 0:02:40.9]} 10... Bxe2 {[%clk 0:02:24.9]} 11. Qxe2 {[%clk
0:02:41.8]} 11... dxe5 {[%clk 0:02:24.4]} 12. Rad1 {[%clk 0:02:40.9]} 12... Qe7
{[%clk 0:02:03.8]} 13. Qc4 {[%clk 0:02:27.5]} 13... b6 {[%clk 0:01:58.2]} 14.
Bg5 {[%clk 0:02:23]} 14... Qe6 {[%clk 0:01:29]} 15. Qxe6 {[%clk 0:02:20.8]}
15... fxe6 {[%clk 0:01:28.8]} 16. Bxf6 {[%clk 0:02:08.9]} 16... Bxf6 {[%clk
0:01:24.5]} 17. Rd7 {[%clk 0:02:09.4]} 17... Rf7 {[%clk 0:01:16.6]} 18. Rfd1
{[%clk 0:02:09.2]} 18... Raf8 {[%clk 0:00:59.4]} 19. Nb5 {[%clk 0:02:04.7]}
19... Bh4 {[%clk 0:00:26.7]} 20. Rxf7 {[%clk 0:02:02.9]} 20... Rxf7 {[%clk
0:00:26.9]} 21. g3 {[%clk 0:02:03.1]} 21... Be7 {[%clk 0:00:19.8]} 22. Rd7
{[%clk 0:01:58.6]} 22... Bc5 {[%clk 0:00:06.9]} 23. Rxf7 {[%clk 0:01:57.2]}
23... Kxf7 {[%clk 0:00:07.8]} 24. Nxc7 {[%clk 0:01:56.8]} 24... Ke7 {[%clk
0:00:06.8]} 25. Kf1 {[%clk 0:01:53.6]} 25... Kd7 {[%clk 0:00:06.8]} 26. Nb5
{[%clk 0:01:53.3]} 26... Kc6 {[%clk 0:00:07.2]} 27. Nc3 {[%clk 0:01:51.9]} 27...
b5 {[%clk 0:00:06]} 28. Ke2 {[%clk 0:01:51.1]} 28... a5 {[%clk 0:00:05.1]} 29.
f3 {[%clk 0:01:49.1]} 29... b4 {[%clk 0:00:05]} 30. axb4 {[%clk 0:01:48.5]}
30... axb4 {[%clk 0:00:05.9]} 31. Nd1 {[%clk 0:01:45.9]} 31... Kb5 {[%clk
0:00:05.6]} 32. Kd3 {[%clk 0:01:45.4]} 32... Bd4 {[%clk 0:00:05.2]} 33. c3
{[%clk 0:01:39.3]} 33... bxc3 {[%clk 0:00:05]} 34. bxc3 {[%clk 0:01:40.2]} 34...
Bb6 {[%clk 0:00:04]} 35. g4 {[%clk 0:01:37.4]} 1-0

[Event "Early-Titled-Tuesday-Blitz-October-24-2023"]
[Site "Chess.com"]
[Date "2023.10.24"]
[Round "5"]
[White "Zhbugnoimt"]
[Black "Lion_DL"]
[Result "1-0"]
[WhiteElo "2572"]
[BlackElo "2419"]
[TimeControl "180+1"]
[EndTime "8:53:36 PDT"]
[Termination "Zhbugnoimt won by resignation"]

1. e4 {[%clk 0:03:00.9]} 1... c5 {[%clk 0:02:58.3]} 2. Nf3 {[%clk 0:03:01]} 2...
e6 {[%clk 0:02:57.3]} 3. d4 {[%clk 0:03:01.2]} 3... cxd4 {[%clk 0:02:58.2]} 4.
Nxd4 {[%clk 0:03:01.8]} 4... a6 {[%clk 0:02:58.6]} 5. Nc3 {[%clk 0:03:00.1]}
5... Qc7 {[%clk 0:02:58.8]} 6. Bd3 {[%clk 0:02:53.5]} 6... Nf6 {[%clk
0:02:58.9]} 7. O-O {[%clk 0:02:53.6]} 7... Nc6 {[%clk 0:02:59.2]} 8. Nxc6 {[%clk
0:02:49.4]} 8... dxc6 {[%clk 0:03:00.1]} 9. e5 {[%clk 0:02:34.2]} 9... Qxe5
{[%clk 0:02:56.8]} 10. Re1 {[%clk 0:02:34.3]} 10... Qc7 {[%clk 0:02:53.9]} 11.
Qf3 {[%clk 0:02:33.3]} 11... Be7 {[%clk 0:02:50.2]} 12. Bf4 {[%clk 0:02:33.1]}
12... Qb6 {[%clk 0:02:47.1]} 13. Be5 {[%clk 0:02:32.5]} 13... O-O {[%clk
0:02:45.9]} 14. Qh3 {[%clk 0:02:22.8]} 14... h6 {[%clk 0:02:31.2]} 15. Re3
{[%clk 0:02:21.6]} 15... Nd7 {[%clk 0:02:24.1]} 16. Bf4 {[%clk 0:00:48.6]} 16...
f5 {[%clk 0:01:14.3]} 17. Rxe6 {[%clk 0:00:45.5]} 17... Bc5 {[%clk 0:00:59.8]}
18. Bxh6 {[%clk 0:00:39.5]} 18... Bxf2+ {[%clk 0:00:55.1]} 19. Kh1 {[%clk
0:00:38.1]} 19... Nf6 {[%clk 0:00:52.9]} 20. Re7 {[%clk 0:00:29.6]} 20... Ne8
{[%clk 0:00:40.5]} 21. Bc4+ {[%clk 0:00:28.2]} 1-0

[Event "Early-Titled-Tuesday-Blitz-October-24-2023"]
[Site "Chess.com"]
[Date "2023.10.24"]
[Round "5"]
[White "Oleksandr_Bortnyk"]
[Black "Nyzhnyk_Illia"]
[Result "0-1"]
[WhiteElo "3033"]
[BlackElo "2884"]
[TimeControl "180+1"]
[EndTime "8:53:39 PDT"]
[Termination "Nyzhnyk_Illia won on time"]

1. d4 {[%clk 0:02:58.4]} 1... d5 {[%clk 0:02:57.1]} 2. Nc3 {[%clk 0:02:58.5]}
2... Nc6 {[%clk 0:02:56.6]} 3. e4 {[%clk 0:02:53.8]} 3... e6 {[%clk 0:02:56.4]}
4. Nf3 {[%clk 0:02:47.2]} 4... Bb4 {[%clk 0:02:56.3]} 5. e5 {[%clk 0:02:33.5]}
5... Nge7 {[%clk 0:02:56]} 6. Bg5 {[%clk 0:02:23.9]} 6... h6 {[%clk 0:02:56]} 7.
Be3 {[%clk 0:02:17.8]} 7... Nf5 {[%clk 0:02:54.8]} 8. Bd3 {[%clk 0:02:18.5]}
8... Nxe3 {[%clk 0:02:51.6]} 9. fxe3 {[%clk 0:02:19.4]} 9... O-O {[%clk
0:02:51]} 10. O-O {[%clk 0:02:18.6]} 10... f5 {[%clk 0:02:46.9]} 11. exf6 {[%clk
0:02:05.9]} 11... Rxf6 {[%clk 0:02:47.3]} 12. e4 {[%clk 0:02:03.7]} 12... Bxc3
{[%clk 0:02:41.3]} 13. bxc3 {[%clk 0:02:03.3]} 13... Bd7 {[%clk 0:02:42]} 14.
Qe2 {[%clk 0:01:46]} 14... Be8 {[%clk 0:02:33.4]} 15. exd5 {[%clk 0:01:45.3]}
15... exd5 {[%clk 0:02:33]} 16. Ne5 {[%clk 0:01:45.9]} 16... Nxe5 {[%clk
0:02:24.9]} 17. dxe5 {[%clk 0:01:46]} 17... Rxf1+ {[%clk 0:02:24.8]} 18. Rxf1
{[%clk 0:01:46.5]} 18... Qe7 {[%clk 0:02:24.9]} 19. e6 {[%clk 0:01:46.2]} 19...
Rd8 {[%clk 0:02:22.3]} 20. Qe5 {[%clk 0:01:10.6]} 20... Rd6 {[%clk 0:02:22]} 21.
Re1 {[%clk 0:00:39.7]} 21... Qg5 {[%clk 0:02:12.5]} 22. Qd4 {[%clk 0:00:29.7]}
22... b6 {[%clk 0:02:12.6]} 23. e7 {[%clk 0:00:27.9]} 23... c5 {[%clk
0:02:12.1]} 24. Qf2 {[%clk 0:00:24.5]} 24... Rf6 {[%clk 0:02:11.2]} 25. Qe3
{[%clk 0:00:16.4]} 25... Qxe3+ {[%clk 0:02:11.3]} 26. Rxe3 {[%clk 0:00:17.3]}
26... Kf7 {[%clk 0:02:08.7]} 27. Re5 {[%clk 0:00:17.5]} 27... Rd6 {[%clk
0:02:05.5]} 28. Kf2 {[%clk 0:00:09.1]} 28... Kf6 {[%clk 0:02:05.7]} 29. Re3
{[%clk 0:00:07.4]} 29... Re6 {[%clk 0:02:05.6]} 30. Rxe6+ {[%clk 0:00:02.2]}
30... Kxe6 {[%clk 0:02:06.1]} 31. a3 {[%clk 0:00:03.1]} 31... Kxe7 {[%clk
0:02:06.6]} 32. Ke3 {[%clk 0:00:04]} 32... Kd6 {[%clk 0:02:07.1]} 33. Kf4 {[%clk
0:00:04]} 33... Bd7 {[%clk 0:02:07.3]} 34. h4 {[%clk 0:00:04.5]} 34... b5 {[%clk
0:02:02.8]} 35. g4 {[%clk 0:00:04.6]} 35... a5 {[%clk 0:02:03.3]} 36. g5 {[%clk
0:00:05.3]} 36... a4 {[%clk 0:01:57.9]} 37. Ke3 {[%clk 0:00:02]} 37... b4 {[%clk
0:01:56.6]} 38. cxb4 {[%clk 0:00:01.9]} 38... cxb4 {[%clk 0:01:57.5]} 39. Kd2
{[%clk 0:00:02.1]} 39... bxa3 {[%clk 0:01:55.6]} 40. Kc1 {[%clk 0:00:02.5]}
40... Kc5 {[%clk 0:01:55.5]} 41. Kb1 {[%clk 0:00:02.9]} 41... Kb4 {[%clk
0:01:55.4]} 42. gxh6 {[%clk 0:00:02.8]} 42... gxh6 {[%clk 0:01:55.2]} 43. Bg6
{[%clk 0:00:03.4]} 43... d4 {[%clk 0:01:54.6]} 44. Ka1 {[%clk 0:00:01.8]} 44...
Be6 {[%clk 0:01:54.3]} 45. Bd3 {[%clk 0:00:01.8]} 45... Kc3 {[%clk 0:01:54.8]}
46. Be4 {[%clk 0:00:02.1]} 46... Bc4 {[%clk 0:01:53.5]} 47. Bg6 {[%clk 0:00:02]}
47... Be2 {[%clk 0:01:54]} 48. Kb1 {[%clk 0:00:01.2]} 48... Bd1 {[%clk
0:01:54.4]} 0-1

[Event "Early-Titled-Tuesday-Blitz-October-24-2023"]
[Site "Chess.com"]
[Date "2023.10.24"]
[Round "5"]
[White "WhiteKnight2612"]
[Black "Boundless_Strike"]
[Result "1-0"]
[WhiteElo "2826"]
[BlackElo "2619"]
[TimeControl "180+1"]
[EndTime "8:53:39 PDT"]
[Termination "WhiteKnight2612 won by resignation"]

1. e4 {[%clk 0:03:00.9]} 1... d6 {[%clk 0:02:54.9]} 2. d4 {[%clk 0:02:59.8]}
2... e5 {[%clk 0:02:55.1]} 3. Nf3 {[%clk 0:02:57.4]} 3... Bg4 {[%clk 0:02:54.1]}
4. dxe5 {[%clk 0:02:55.1]} 4... Nc6 {[%clk 0:02:54.1]} 5. Bb5 {[%clk 0:02:50.6]}
5... Qd7 {[%clk 0:02:53.8]} 6. h3 {[%clk 0:02:43.5]} 6... Bh5 {[%clk 0:02:53.5]}
7. exd6 {[%clk 0:02:37]} 7... Bxd6 {[%clk 0:02:53.4]} 8. e5 {[%clk 0:02:25.1]}
8... Bxf3 {[%clk 0:02:48.5]} 9. Qxf3 {[%clk 0:02:23.3]} 9... Bxe5 {[%clk
0:02:49.1]} 10. O-O {[%clk 0:02:22.7]} 10... Nge7 {[%clk 0:02:39.4]} 11. Re1
{[%clk 0:02:20.4]} 11... O-O {[%clk 0:02:32.3]} 12. Nc3 {[%clk 0:02:14.1]} 12...
Bxc3 {[%clk 0:01:50.3]} 13. Qxc3 {[%clk 0:02:12.9]} 13... Nd5 {[%clk 0:01:50.2]}
14. Qg3 {[%clk 0:02:10.5]} 14... Qf5 {[%clk 0:01:25.5]} 15. Bd3 {[%clk
0:02:06.1]} 15... Qf6 {[%clk 0:01:22]} 16. Bg5 {[%clk 0:01:58.1]} 16... Qxb2
{[%clk 0:01:15.6]} 17. Rab1 {[%clk 0:01:54.9]} 17... Qc3 {[%clk 0:01:11.3]} 18.
Re4 {[%clk 0:01:51.1]} 18... Rfe8 {[%clk 0:00:49.7]} 19. Rxb7 {[%clk 0:01:42.6]}
19... Ncb4 {[%clk 0:00:32.8]} 20. Rbxb4 {[%clk 0:01:31.8]} 20... Qa1+ {[%clk
0:00:13.7]} 21. Kh2 {[%clk 0:01:27.3]} 21... Nxb4 {[%clk 0:00:14.4]} 22. Rxb4
{[%clk 0:01:26.7]} 22... c5 {[%clk 0:00:13.8]} 23. Rb7 {[%clk 0:01:23.9]} 23...
Qe5 {[%clk 0:00:11.8]} 24. Bf4 {[%clk 0:01:22.9]} 24... Qf6 {[%clk 0:00:10.6]}
25. Bc4 {[%clk 0:01:20.2]} 25... Re7 {[%clk 0:00:09.6]} 26. Bg5 {[%clk
0:01:20.3]} 26... Qxg5 {[%clk 0:00:09.2]} 27. Qxg5 {[%clk 0:01:19.8]} 27... Rxb7
{[%clk 0:00:09.9]} 28. Bd5 {[%clk 0:01:20.4]} 1-0

[Event "Early-Titled-Tuesday-Blitz-October-24-2023"]
[Site "Chess.com"]
[Date "2023.10.24"]
[Round "5"]
[White "GMSrinath"]
[Black "rezamahdavi2008"]
[Result "0-1"]
[WhiteElo "2829"]
[BlackElo "2894"]
[TimeControl "180+1"]
[EndTime "8:53:41 PDT"]
[Termination "rezamahdavi2008 won by checkmate"]

1. Nf3 {[%clk 0:02:56.9]} 1... Nf6 {[%clk 0:02:55.4]} 2. c4 {[%clk 0:02:57.4]}
2... e6 {[%clk 0:02:55.6]} 3. e3 {[%clk 0:02:54.6]} 3... d5 {[%clk 0:02:55.4]}
4. b3 {[%clk 0:02:55.1]} 4... c6 {[%clk 0:02:48.3]} 5. Bb2 {[%clk 0:02:54.2]}
5... Nbd7 {[%clk 0:02:35]} 6. Nc3 {[%clk 0:02:49.3]} 6... Bd6 {[%clk 0:02:35.5]}
7. d4 {[%clk 0:02:45]} 7... O-O {[%clk 0:02:34.1]} 8. Bd3 {[%clk 0:02:45.3]}
8... b6 {[%clk 0:02:29.7]} 9. O-O {[%clk 0:02:44.9]} 9... Bb7 {[%clk 0:02:21]}
10. Rc1 {[%clk 0:02:38.5]} 10... Qe7 {[%clk 0:02:16.4]} 11. Re1 {[%clk
0:02:37.8]} 11... Ba3 {[%clk 0:02:07.1]} 12. Qd2 {[%clk 0:01:58.5]} 12... Bxb2
{[%clk 0:01:57.3]} 13. Qxb2 {[%clk 0:01:59.4]} 13... c5 {[%clk 0:01:58.2]} 14.
cxd5 {[%clk 0:01:49.8]} 14... cxd4 {[%clk 0:01:56.4]} 15. Nxd4 {[%clk
0:01:41.5]} 15... Nxd5 {[%clk 0:01:56.6]} 16. Nxd5 {[%clk 0:01:30.4]} 16... Bxd5
{[%clk 0:01:57.5]} 17. Rc7 {[%clk 0:01:24.2]} 17... Qd8 {[%clk 0:01:57.7]} 18.
Rc3 {[%clk 0:01:12.9]} 18... Nc5 {[%clk 0:01:56.3]} 19. Bb1 {[%clk 0:01:07.8]}
19... e5 {[%clk 0:01:53]} 20. Nf5 {[%clk 0:01:03.9]} 20... g6 {[%clk 0:01:52.8]}
21. Ng3 {[%clk 0:01:02.4]} 21... Qh4 {[%clk 0:01:50.2]} 22. Rcc1 {[%clk
0:00:49.8]} 22... Rfe8 {[%clk 0:01:46.2]} 23. b4 {[%clk 0:00:50.1]} 23... Nd7
{[%clk 0:01:31.6]} 24. Red1 {[%clk 0:00:46.6]} 24... Nf6 {[%clk 0:01:22.4]} 25.
h3 {[%clk 0:00:40]} 25... Rad8 {[%clk 0:01:22.1]} 26. a3 {[%clk 0:00:39.5]}
26... Qg5 {[%clk 0:01:09]} 27. Ba2 {[%clk 0:00:38]} 27... Bxa2 {[%clk
0:01:07.3]} 28. Qxa2 {[%clk 0:00:38.9]} 28... h5 {[%clk 0:01:01.4]} 29. Rxd8
{[%clk 0:00:37.5]} 29... Rxd8 {[%clk 0:01:02.3]} 30. Rc7 {[%clk 0:00:37.7]}
30... Rd1+ {[%clk 0:01:03]} 31. Kh2 {[%clk 0:00:37.6]} 31... Ng4+ {[%clk
0:01:02.7]} 32. hxg4 {[%clk 0:00:28]} 32... Qh4# {[%clk 0:01:03.6]} 0-1

[Event "Early-Titled-Tuesday-Blitz-October-24-2023"]
[Site "Chess.com"]
[Date "2023.10.24"]
[Round "5"]
[White "GM_DarwinLaylo"]
[Black "Sjakkerntobi"]
[Result "1-0"]
[WhiteElo "2642"]
[BlackElo "2481"]
[TimeControl "180+1"]
[EndTime "8:53:41 PDT"]
[Termination "GM_DarwinLaylo won by resignation"]

1. c4 {[%clk 0:02:35.4]} 1... c5 {[%clk 0:02:59]} 2. Nc3 {[%clk 0:02:35.3]} 2...
g6 {[%clk 0:02:59.6]} 3. g3 {[%clk 0:02:35.3]} 3... Bg7 {[%clk 0:03:00.3]} 4.
Bg2 {[%clk 0:02:36]} 4... Nc6 {[%clk 0:03:01.1]} 5. e4 {[%clk 0:02:35.3]} 5...
d6 {[%clk 0:03:01.4]} 6. Nge2 {[%clk 0:02:35.8]} 6... e6 {[%clk 0:03:01.1]} 7.
O-O {[%clk 0:02:36.2]} 7... Nge7 {[%clk 0:03:01.7]} 8. d3 {[%clk 0:02:36.9]}
8... O-O {[%clk 0:03:02.4]} 9. Be3 {[%clk 0:02:36.2]} 9... Nd4 {[%clk
0:03:02.6]} 10. Qd2 {[%clk 0:02:36]} 10... b6 {[%clk 0:03:00.5]} 11. Bh6 {[%clk
0:02:33.9]} 11... Bb7 {[%clk 0:02:59.9]} 12. Bxg7 {[%clk 0:02:33.2]} 12... Kxg7
{[%clk 0:03:00.7]} 13. Nxd4 {[%clk 0:02:32.5]} 13... cxd4 {[%clk 0:03:01.6]} 14.
Ne2 {[%clk 0:02:32.8]} 14... Nc6 {[%clk 0:02:46.4]} 15. f4 {[%clk 0:02:31.7]}
15... e5 {[%clk 0:02:45.3]} 16. f5 {[%clk 0:02:30.9]} 16... f6 {[%clk
0:02:43.1]} 17. h4 {[%clk 0:02:30]} 17... a6 {[%clk 0:02:39.6]} 18. g4 {[%clk
0:02:28.4]} 18... Qe7 {[%clk 0:02:38.9]} 19. Ng3 {[%clk 0:02:27.2]} 19... b5
{[%clk 0:02:34.3]} 20. b3 {[%clk 0:02:27.4]} 20... Bc8 {[%clk 0:02:30.7]} 21.
Rf2 {[%clk 0:02:25.9]} 21... Bd7 {[%clk 0:02:30.2]} 22. Raf1 {[%clk 0:02:26]}
22... bxc4 {[%clk 0:02:30.7]} 23. bxc4 {[%clk 0:02:25.6]} 23... Rab8 {[%clk
0:02:30.9]} 24. g5 {[%clk 0:02:26]} 24... gxf5 {[%clk 0:02:24.7]} 25. gxf6+
{[%clk 0:02:20.5]} 25... Rxf6 {[%clk 0:02:24.1]} 26. Nh5+ {[%clk 0:02:20.3]}
26... Kh8 {[%clk 0:02:24.4]} 27. Nxf6 {[%clk 0:02:19.7]} 27... Qxf6 {[%clk
0:02:25.3]} 28. exf5 {[%clk 0:02:18.5]} 28... Rg8 {[%clk 0:02:23.1]} 29. h5
{[%clk 0:02:00.7]} 29... e4 {[%clk 0:02:13.4]} 30. dxe4 {[%clk 0:01:55.1]} 30...
Ne5 {[%clk 0:02:13]} 31. Rf4 {[%clk 0:01:47.4]} 31... Nxc4 {[%clk 0:02:07.1]}
32. Qb4 {[%clk 0:01:33.6]} 32... Ne3 {[%clk 0:02:05.8]} 33. R1f2 {[%clk
0:01:31.8]} 33... Bb5 {[%clk 0:01:08.9]} 34. Rd2 {[%clk 0:01:28.9]} 34... Bf1
{[%clk 0:00:58.2]} 35. Rxf1 {[%clk 0:01:26.2]} 35... Nxf1 {[%clk 0:00:55.8]} 36.
Kxf1 {[%clk 0:01:26.4]} 36... d3 {[%clk 0:00:52.2]} 37. Qb2 {[%clk 0:01:22.1]}
37... Qxb2 {[%clk 0:00:47.8]} 38. Rxb2 {[%clk 0:01:21.4]} 38... Rc8 {[%clk
0:00:44.3]} 39. Rd2 {[%clk 0:01:20]} 39... Rc2 {[%clk 0:00:40.3]} 40. Ke1 {[%clk
0:01:18.7]} 40... Rc3 {[%clk 0:00:40.4]} 41. Kf2 {[%clk 0:01:17.8]} 41... Kg7
{[%clk 0:00:40.2]} 1-0

[Event "Early-Titled-Tuesday-Blitz-October-24-2023"]
[Site "Chess.com"]
[Date "2023.10.24"]
[Round "5"]
[White "matenitian"]
[Black "NovikovaGalina"]
[Result "1-0"]
[WhiteElo "2583"]
[BlackElo "2435"]
[TimeControl "180+1"]
[EndTime "8:53:45 PDT"]
[Termination "matenitian won by checkmate"]

1. e4 {[%clk 0:02:58.7]} 1... e6 {[%clk 0:03:00.1]} 2. d4 {[%clk 0:02:57.1]}
2... d5 {[%clk 0:03:01]} 3. Nc3 {[%clk 0:02:57]} 3... Bb4 {[%clk 0:03:00.7]} 4.
e5 {[%clk 0:02:56.8]} 4... c5 {[%clk 0:03:00.7]} 5. a3 {[%clk 0:02:56.1]} 5...
Bxc3+ {[%clk 0:03:01.2]} 6. bxc3 {[%clk 0:02:57]} 6... Ne7 {[%clk 0:03:01.7]} 7.
Nf3 {[%clk 0:02:48]} 7... b6 {[%clk 0:02:59.6]} 8. Bb5+ {[%clk 0:02:47.5]} 8...
Bd7 {[%clk 0:02:59.6]} 9. Bd3 {[%clk 0:02:48.1]} 9... c4 {[%clk 0:02:58.9]} 10.
Be2 {[%clk 0:02:47.8]} 10... Ba4 {[%clk 0:02:59.8]} 11. O-O {[%clk 0:02:46.8]}
11... h6 {[%clk 0:02:58.1]} 12. Nh4 {[%clk 0:02:27.8]} 12... Nbc6 {[%clk
0:02:58.5]} 13. f4 {[%clk 0:02:26.8]} 13... Kd7 {[%clk 0:02:58.9]} 14. f5 {[%clk
0:02:23.9]} 14... Qg8 {[%clk 0:02:48.2]} 15. fxe6+ {[%clk 0:01:47.8]} 15... fxe6
{[%clk 0:02:48]} 16. Bg4 {[%clk 0:01:48]} 16... g5 {[%clk 0:02:45.9]} 17. Rf6
{[%clk 0:01:38.4]} 17... gxh4 {[%clk 0:02:37.9]} 18. Bxe6+ {[%clk 0:01:36.1]}
18... Qxe6 {[%clk 0:02:34.7]} 19. Rxe6 {[%clk 0:01:33.7]} 19... Kxe6 {[%clk
0:02:35.6]} 20. Qg4+ {[%clk 0:01:33.1]} 20... Kf7 {[%clk 0:02:28.3]} 21. Be3
{[%clk 0:01:10.2]} 21... Rag8 {[%clk 0:02:17]} 22. Qd7 {[%clk 0:01:01.1]} 22...
Rg7 {[%clk 0:01:28.8]} 23. Rf1+ {[%clk 0:00:54.3]} 23... Kg8 {[%clk 0:01:29.2]}
24. Qe6+ {[%clk 0:00:45.1]} 24... Kh7 {[%clk 0:01:29.6]} 25. Qxh6+ {[%clk
0:00:38.3]} 25... Kg8 {[%clk 0:01:30.1]} 26. Qe6+ {[%clk 0:00:36.7]} 26... Kh7
{[%clk 0:01:30.6]} 27. Rf7 {[%clk 0:00:28.9]} 27... Bxc2 {[%clk 0:00:45.1]} 28.
Qh6+ {[%clk 0:00:26.6]} 28... Kg8 {[%clk 0:00:43.4]} 29. Qxg7# {[%clk
0:00:27.5]} 1-0

[Event "Early-Titled-Tuesday-Blitz-October-24-2023"]
[Site "Chess.com"]
[Date "2023.10.24"]
[Round "5"]
[White "HajiyevKanan"]
[Black "Road2GM3000"]
[Result "1-0"]
[WhiteElo "2564"]
[BlackElo "2394"]
[TimeControl "180+1"]
[EndTime "8:53:52 PDT"]
[Termination "HajiyevKanan won by checkmate"]

1. d4 {[%clk 0:03:00.9]} 1... d5 {[%clk 0:03:00.3]} 2. Nf3 {[%clk 0:03:01.8]}
2... Nf6 {[%clk 0:03:00.1]} 3. c4 {[%clk 0:03:02.7]} 3... c6 {[%clk 0:03:00.6]}
4. cxd5 {[%clk 0:03:03.6]} 4... cxd5 {[%clk 0:03:01]} 5. Nc3 {[%clk 0:03:04.5]}
5... Nc6 {[%clk 0:03:01.6]} 6. Bg5 {[%clk 0:03:05.2]} 6... a6 {[%clk 0:03:00.2]}
7. Bxf6 {[%clk 0:03:04.5]} 7... gxf6 {[%clk 0:03:01.1]} 8. Qb3 {[%clk
0:03:04.8]} 8... e6 {[%clk 0:02:58.5]} 9. g3 {[%clk 0:03:04.5]} 9... Na5 {[%clk
0:02:52.7]} 10. Qc2 {[%clk 0:02:59]} 10... Bd7 {[%clk 0:02:52.8]} 11. Bg2 {[%clk
0:02:59.3]} 11... Rc8 {[%clk 0:02:53.1]} 12. O-O {[%clk 0:02:59.8]} 12... h5
{[%clk 0:02:51.7]} 13. e4 {[%clk 0:03:00.1]} 13... dxe4 {[%clk 0:02:47.6]} 14.
Qxe4 {[%clk 0:02:59.5]} 14... Bc6 {[%clk 0:02:48.2]} 15. Qe2 {[%clk 0:02:57.3]}
15... Be7 {[%clk 0:02:46.3]} 16. Rad1 {[%clk 0:02:54.4]} 16... Kf8 {[%clk
0:02:21.5]} 17. d5 {[%clk 0:02:44.3]} 17... exd5 {[%clk 0:02:21.6]} 18. Nd4
{[%clk 0:02:41.7]} 18... Bc5 {[%clk 0:02:09.6]} 19. Rfe1 {[%clk 0:02:35.6]}
19... Qd7 {[%clk 0:02:07.3]} 20. Qf3 {[%clk 0:02:27.1]} 20... Re8 {[%clk
0:02:01.8]} 21. Rxe8+ {[%clk 0:02:23]} 21... Qxe8 {[%clk 0:02:02.7]} 22. Qxf6
{[%clk 0:02:15.5]} 22... Rh7 {[%clk 0:02:02.4]} 23. Nxd5 {[%clk 0:01:42.6]}
23... Nc4 {[%clk 0:01:50.2]} 24. Nxc6 {[%clk 0:01:30.7]} 24... bxc6 {[%clk
0:01:46.3]} 25. Nc7 {[%clk 0:01:30.3]} 25... Be7 {[%clk 0:01:30]} 26. Nxe8
{[%clk 0:01:28.6]} 26... Bxf6 {[%clk 0:01:30.3]} 27. Nxf6 {[%clk 0:01:29.5]}
27... Rh6 {[%clk 0:01:31.1]} 28. Nd7+ {[%clk 0:01:21.8]} 28... Ke7 {[%clk
0:01:30.8]} 29. b3 {[%clk 0:01:09.3]} 29... Na3 {[%clk 0:01:30.9]} 30. Ne5
{[%clk 0:01:05.5]} 30... c5 {[%clk 0:01:31.1]} 31. f4 {[%clk 0:01:05]} 31... Nb5
{[%clk 0:01:31.1]} 32. Rd7+ {[%clk 0:01:04.9]} 32... Kf8 {[%clk 0:01:30.3]} 33.
Rxf7+ {[%clk 0:01:05]} 33... Ke8 {[%clk 0:01:30.4]} 34. Rb7 {[%clk 0:01:02.7]}
34... Nc3 {[%clk 0:01:29.2]} 35. a4 {[%clk 0:00:59.1]} 35... Ne2+ {[%clk
0:01:28.7]} 36. Kf2 {[%clk 0:00:58.4]} 36... Nd4 {[%clk 0:01:29.5]} 37. a5
{[%clk 0:00:51.1]} 37... h4 {[%clk 0:01:29.1]} 38. g4 {[%clk 0:00:50.9]} 38...
h3 {[%clk 0:01:29.1]} 39. Bd5 {[%clk 0:00:50.6]} 39... Rf6 {[%clk 0:01:28.3]}
40. f5 {[%clk 0:00:46.4]} 40... Nxf5 {[%clk 0:01:27.3]} 41. Rb8+ {[%clk
0:00:37.9]} 41... Ke7 {[%clk 0:01:26.3]} 42. Nc6+ {[%clk 0:00:38.8]} 42... Kd6
{[%clk 0:01:25.2]} 43. Rd8+ {[%clk 0:00:37.6]} 43... Kc7 {[%clk 0:01:24.8]} 44.
gxf5 {[%clk 0:00:36.1]} 44... Rxf5+ {[%clk 0:01:24.7]} 45. Bf3 {[%clk
0:00:36.5]} 45... Rf4 {[%clk 0:01:18.9]} 46. Ra8 {[%clk 0:00:32.6]} 46... Kb7
{[%clk 0:01:17.1]} 47. Ra7+ {[%clk 0:00:32.7]} 47... Kc8 {[%clk 0:01:16.3]} 48.
Kg3 {[%clk 0:00:28.8]} 48... c4 {[%clk 0:01:17.2]} 49. Kxf4 {[%clk 0:00:27.6]}
49... cxb3 {[%clk 0:01:17.9]} 50. Bg4# {[%clk 0:00:28.3]} 1-0